[Event "Live Chess"]
[Site "Chess.com"]
[Date "2023.05.21"]
[Round "-"]
[White "Biranidun"]
[Black "Twickenham2014"]
[Result "1-0"]
[WhiteElo "2543"]
[BlackElo "2303"]
[TimeControl "300"]
[EndTime "3:47:19 PDT"]
[Termination "Biranidun won on time"]

1. e4 {[%clk 0:04:58.8]} 1... c5 {[%clk 0:04:58.1]} 2. Nf3 {[%clk 0:04:58]} 2...
d6 {[%clk 0:04:57.4]} 3. d4 {[%clk 0:04:57.5]} 3... cxd4 {[%clk 0:04:57]} 4.
Nxd4 {[%clk 0:04:57.4]} 4... Nf6 {[%clk 0:04:56.4]} 5. Nc3 {[%clk 0:04:56.9]}
5... g6 {[%clk 0:04:55.9]} 6. Be3 {[%clk 0:04:56.5]} 6... Bg7 {[%clk 0:04:55.4]}
7. f3 {[%clk 0:04:56.2]} 7... O-O {[%clk 0:04:54.8]} 8. Qd2 {[%clk 0:04:55.9]}
8... Nc6 {[%clk 0:04:54.2]} 9. Bc4 {[%clk 0:04:55.5]} 9... Bd7 {[%clk
0:04:53.6]} 10. O-O-O {[%clk 0:04:54.7]} 10... Rc8 {[%clk 0:04:53.1]} 11. Bb3
{[%clk 0:04:54.2]} 11... Nxd4 {[%clk 0:04:52.2]} 12. Bxd4 {[%clk 0:04:54.1]}
12... b5 {[%clk 0:04:51.6]} 13. Nd5 {[%clk 0:04:53]} 13... Nxd5 {[%clk
0:04:50.5]} 14. Bxg7 {[%clk 0:04:52.9]} 14... Kxg7 {[%clk 0:04:49.9]} 15. exd5
{[%clk 0:04:52.6]} 15... a5 {[%clk 0:04:47.6]} 16. a3 {[%clk 0:04:52.1]} 16...
Kg8 {[%clk 0:04:45.3]} 17. h4 {[%clk 0:04:50.4]} 17... b4 {[%clk 0:04:41.1]} 18.
axb4 {[%clk 0:04:50.3]} 18... axb4 {[%clk 0:04:40.6]} 19. h5 {[%clk 0:04:49.7]}
19... Qa5 {[%clk 0:04:02.7]} 20. Qd4 {[%clk 0:04:48.2]} 20... Bf5 {[%clk
0:03:37.8]} 21. hxg6 {[%clk 0:04:46.8]} 21... Bxg6 {[%clk 0:03:14.2]} 22. Kd2
{[%clk 0:04:45.6]} 22... Rc5 {[%clk 0:03:05.6]} 23. Ke3 {[%clk 0:04:44.3]} 23...
Rfc8 {[%clk 0:02:17.7]} 24. Qh4 {[%clk 0:03:44.3]} 24... Qa7 {[%clk 0:01:40]}
25. Rd4 {[%clk 0:03:42.8]} 25... Rxc2 {[%clk 0:00:56.7]} 26. Bxc2 {[%clk
0:03:41.6]} 26... Rxc2 {[%clk 0:00:56.1]} 27. Rd1 {[%clk 0:03:31.8]} 27... Rxb2
{[%clk 0:00:54.1]} 28. Kf4 {[%clk 0:03:24.2]} 28... Rxg2 {[%clk 0:00:49.7]} 29.
Rxb4 {[%clk 0:03:19]} 29... Kg7 {[%clk 0:00:38.4]} 30. Rh1 {[%clk 0:03:14.2]}
30... h5 {[%clk 0:00:34.9]} 31. Qe1 {[%clk 0:03:12.7]} 31... Qd7 {[%clk
0:00:33.6]} 32. Qa1+ {[%clk 0:03:11.1]} 32... Kh7 {[%clk 0:00:31.1]} 33. Ke3
{[%clk 0:03:04.1]} 33... Qf5 {[%clk 0:00:29.9]} 34. Rd1 {[%clk 0:02:46.8]} 34...
Rg3 {[%clk 0:00:26.2]} 35. Rf4 {[%clk 0:02:42.2]} 35... Qg5 {[%clk 0:00:24]} 36.
Qd4 {[%clk 0:02:34.9]} 36... e5 {[%clk 0:00:18.1]} 37. dxe6 {[%clk 0:02:34.8]}
37... fxe6 {[%clk 0:00:17.6]} 38. Qf6 {[%clk 0:02:23.4]} 38... Qc5+ {[%clk
0:00:15.1]} 39. Qd4 {[%clk 0:02:22.6]} 39... e5 {[%clk 0:00:09.5]} 40. Qxc5
{[%clk 0:02:20.7]} 40... exf4+ {[%clk 0:00:08.2]} 41. Kxf4 {[%clk 0:02:20.6]}
41... dxc5 {[%clk 0:00:07.7]} 42. Kxg3 {[%clk 0:02:20.5]} 42... c4 {[%clk
0:00:06.3]} 43. Rd7+ {[%clk 0:02:19.3]} 43... Kh6 {[%clk 0:00:05.5]} 44. Rc7
{[%clk 0:02:19.2]} 44... Bd3 {[%clk 0:00:05.1]} 45. Kh4 {[%clk 0:02:17.1]} 45...
Kg6 {[%clk 0:00:04.1]} 46. Rc5 {[%clk 0:02:15.8]} 46... Kh6 {[%clk 0:00:03]} 47.
Rc6+ {[%clk 0:02:14.4]} 47... Kg7 {[%clk 0:00:02.2]} 48. Kg5 {[%clk 0:02:13.9]}
48... Kf7 {[%clk 0:00:01.9]} 49. Kxh5 {[%clk 0:02:13]} 49... Ke7 {[%clk
0:00:01.5]} 50. Kg5 {[%clk 0:02:11.5]} 50... Kd7 {[%clk 0:00:01.4]} 51. Rc5
{[%clk 0:02:10.5]} 51... Be2 {[%clk 0:00:01.1]} 52. f4 {[%clk 0:02:09.6]} 52...
Kd6 {[%clk 0:00:01]} 53. Rc8 {[%clk 0:02:08.8]} 53... Kd5 {[%clk 0:00:00.4]} 54.
f5 {[%clk 0:02:07.8]} 54... Kd4 {[%clk 0:00:00.3]} 55. f6 {[%clk 0:02:07.2]}
55... Bd3 {[%clk 0:00:00.2]} 56. f7 {[%clk 0:02:06.4]} 1-0

[Event "Live Chess"]
[Site "Chess.com"]
[Date "2023.05.21"]
[Round "-"]
[White "WilliWeisswurst"]
[Black "Keithdfg"]
[Result "0-1"]
[WhiteElo "1779"]
[BlackElo "1876"]
[TimeControl "300"]
[EndTime "3:47:24 PDT"]
[Termination "Keithdfg won by resignation"]

1. e4 {[%clk 0:04:59]} 1... d6 {[%clk 0:04:59.3]} 2. Nf3 {[%clk 0:04:57.8]} 2...
Nf6 {[%clk 0:04:58]} 3. Bd3 {[%clk 0:04:53.7]} 3... e5 {[%clk 0:04:56.6]} 4. c3
{[%clk 0:04:53.1]} 4... Be7 {[%clk 0:04:56]} 5. Bc2 {[%clk 0:04:52.6]} 5... O-O
{[%clk 0:04:55.4]} 6. O-O {[%clk 0:04:52.1]} 6... c6 {[%clk 0:04:54.3]} 7. h3
{[%clk 0:04:51.6]} 7... Nbd7 {[%clk 0:04:50.8]} 8. Re1 {[%clk 0:04:50.8]} 8...
Re8 {[%clk 0:04:49.3]} 9. d4 {[%clk 0:04:50.1]} 9... Bf8 {[%clk 0:04:48]} 10.
Nbd2 {[%clk 0:04:48.5]} 10... Qc7 {[%clk 0:04:46.4]} 11. Nf1 {[%clk 0:04:47.8]}
11... g6 {[%clk 0:04:41.1]} 12. Ng3 {[%clk 0:04:43.4]} 12... Bg7 {[%clk
0:04:38.9]} 13. Nh2 {[%clk 0:04:09.5]} 13... b5 {[%clk 0:04:35.9]} 14. a3 {[%clk
0:04:08.2]} 14... a6 {[%clk 0:04:34.4]} 15. h4 {[%clk 0:03:52.8]} 15... Bb7
{[%clk 0:04:31]} 16. h5 {[%clk 0:03:49.2]} 16... exd4 {[%clk 0:04:06.8]} 17.
cxd4 {[%clk 0:03:21.2]} 17... c5 {[%clk 0:04:04.7]} 18. d5 {[%clk 0:03:18.8]}
18... c4 {[%clk 0:03:58.1]} 19. hxg6 {[%clk 0:03:13.4]} 19... hxg6 {[%clk
0:03:52.7]} 20. Ng4 {[%clk 0:03:06.4]} 20... Nxg4 {[%clk 0:03:49.4]} 21. Qxg4
{[%clk 0:02:59.3]} 21... c3 {[%clk 0:03:48]} 22. Bd3 {[%clk 0:02:06.7]} 22...
cxb2 {[%clk 0:03:43.1]} 23. Bxb2 {[%clk 0:01:56.2]} 23... Bxb2 {[%clk
0:03:41.4]} 24. Ra2 {[%clk 0:01:55.5]} 24... Bd4 {[%clk 0:03:31.4]} 25. Nf5
{[%clk 0:01:44.6]} 25... Bxd5 {[%clk 0:03:09.3]} 26. Rc2 {[%clk 0:01:34.5]}
26... Qb6 {[%clk 0:03:06.2]} 27. Rec1 {[%clk 0:00:54.9]} 27... Be6 {[%clk
0:02:55]} 28. Qg3 {[%clk 0:00:30.5]} 28... Ne5 {[%clk 0:02:48.4]} 29. Nh6+
{[%clk 0:00:19.3]} 29... Kg7 {[%clk 0:02:45.3]} 30. Qh4 {[%clk 0:00:16.8]} 30...
Rh8 {[%clk 0:02:37]} 0-1

[Event "Live Chess"]
[Site "Chess.com"]
[Date "2023.05.21"]
[Round "-"]
[White "Outspanner"]
[Black "HoarseyHorsey"]
[Result "0-1"]
[WhiteElo "1425"]
[BlackElo "1461"]
[TimeControl "300"]
[EndTime "3:47:35 PDT"]
[Termination "HoarseyHorsey won on time"]

1. d4 {[%clk 0:04:57.8]} 1... Nf6 {[%clk 0:04:59]} 2. Bg5 {[%clk 0:04:55]} 2...
d5 {[%clk 0:04:57.9]} 3. Bxf6 {[%clk 0:04:53.5]} 3... exf6 {[%clk 0:04:57.8]} 4.
e3 {[%clk 0:04:52.1]} 4... Bd6 {[%clk 0:04:57]} 5. c4 {[%clk 0:04:50.7]} 5... c6
{[%clk 0:04:55.4]} 6. Nc3 {[%clk 0:04:47.9]} 6... Be6 {[%clk 0:04:51.4]} 7. cxd5
{[%clk 0:04:43.2]} 7... cxd5 {[%clk 0:04:48.8]} 8. Bd3 {[%clk 0:04:31.1]} 8...
Nd7 {[%clk 0:04:46.9]} 9. Nge2 {[%clk 0:04:27.5]} 9... Rc8 {[%clk 0:04:42.7]}
10. O-O {[%clk 0:04:15.3]} 10... a6 {[%clk 0:04:41.5]} 11. a4 {[%clk 0:04:06.2]}
11... O-O {[%clk 0:04:39.7]} 12. g3 {[%clk 0:03:56.5]} 12... Bh3 {[%clk
0:04:37]} 13. Re1 {[%clk 0:03:54.8]} 13... Re8 {[%clk 0:04:27.2]} 14. Nf4 {[%clk
0:03:52.6]} 14... Bxf4 {[%clk 0:04:25.2]} 15. gxf4 {[%clk 0:03:52.5]} 15... Nf8
{[%clk 0:04:12.6]} 16. Qh5 {[%clk 0:03:49.7]} 16... g6 {[%clk 0:03:46.3]} 17.
Qxh3 {[%clk 0:03:47.8]} 17... Qd6 {[%clk 0:03:34.4]} 18. Kh1 {[%clk 0:03:21.2]}
18... Kg7 {[%clk 0:03:29.1]} 19. Rg1 {[%clk 0:03:15.9]} 19... Qb4 {[%clk
0:03:19.9]} 20. Rab1 {[%clk 0:03:12.9]} 20... Red8 {[%clk 0:03:08.9]} 21. Nxd5
{[%clk 0:02:47.7]} 21... Qd2 {[%clk 0:02:58]} 22. Rbd1 {[%clk 0:02:25]} 22...
Qxb2 {[%clk 0:02:40.7]} 23. Rb1 {[%clk 0:02:18.2]} 23... Qa3 {[%clk 0:02:28.2]}
24. Rxb7 {[%clk 0:02:10]} 24... Qxd3 {[%clk 0:02:20.6]} 25. Qg2 {[%clk 0:01:44]}
25... Qc4 {[%clk 0:02:00.4]} 26. Nb4 {[%clk 0:01:30.6]} 26... Rb8 {[%clk
0:01:53]} 27. h4 {[%clk 0:01:01.8]} 27... h5 {[%clk 0:01:23.3]} 28. f5 {[%clk
0:00:56.1]} 28... Rxb7 {[%clk 0:01:08.5]} 29. Qxb7 {[%clk 0:00:54]} 29... Qc8
{[%clk 0:00:51.8]} 30. Qf3 {[%clk 0:00:42.2]} 30... Qd7 {[%clk 0:00:36.9]} 31.
Qxh5 {[%clk 0:00:32.6]} 31... Qb7+ {[%clk 0:00:28.4]} 32. f3 {[%clk 0:00:28.7]}
32... Qxb4 {[%clk 0:00:19]} 33. fxg6 {[%clk 0:00:28.2]} 33... Nxg6 {[%clk
0:00:15.4]} 34. Qf5 {[%clk 0:00:14.8]} 34... Rh8 {[%clk 0:00:09.9]} 35. h5
{[%clk 0:00:12.8]} 35... Rxh5+ {[%clk 0:00:08.5]} 36. Qxh5 {[%clk 0:00:11.2]}
36... Qb7 {[%clk 0:00:06.5]} 37. Qg4 {[%clk 0:00:08.9]} 37... Qe7 {[%clk
0:00:04.4]} 38. e4 {[%clk 0:00:06.9]} 38... Qe6 {[%clk 0:00:03.7]} 39. Qxe6
{[%clk 0:00:04.5]} 39... fxe6 {[%clk 0:00:02.7]} 40. d5 {[%clk 0:00:04.1]} 40...
Kf7 {[%clk 0:00:02.3]} 41. dxe6+ {[%clk 0:00:03.4]} 41... Kxe6 {[%clk
0:00:02.2]} 42. Rxg6 {[%clk 0:00:02.2]} 42... Ke5 {[%clk 0:00:02.1]} 43. Rg7
{[%clk 0:00:01.8]} 43... Kd4 {[%clk 0:00:02]} 44. Rg8 {[%clk 0:00:01.5]} 44...
Ke3 {[%clk 0:00:01.9]} 45. Rf8 {[%clk 0:00:01.2]} 45... Kf4 {[%clk 0:00:01.8]}
46. Re8 {[%clk 0:00:01]} 46... Kxf3 {[%clk 0:00:01.7]} 47. Rd8 {[%clk
0:00:00.9]} 47... Kxe4 {[%clk 0:00:01.6]} 48. Rc8 {[%clk 0:00:00.8]} 48... Kf4
{[%clk 0:00:01.4]} 49. Rb8 {[%clk 0:00:00.7]} 49... Kf5 {[%clk 0:00:01.2]} 50.
Ra8 {[%clk 0:00:00.6]} 50... Kg5 {[%clk 0:00:01]} 51. Rb8 {[%clk 0:00:00.5]}
51... Kf5 {[%clk 0:00:00.9]} 0-1

[Event "Live Chess"]
[Site "Chess.com"]
[Date "2023.05.21"]
[Round "-"]
[White "chrisbradgate"]
[Black "BritishIsles"]
[Result "0-1"]
[WhiteElo "874"]
[BlackElo "2415"]
[TimeControl "300"]
[EndTime "3:47:36 PDT"]
[Termination "BritishIsles won by checkmate"]

1. d4 {[%clk 0:04:57.6]} 1... Nf6 {[%clk 0:04:57]} 2. Bf4 {[%clk 0:04:56.4]}
2... c5 {[%clk 0:04:52.2]} 3. c3 {[%clk 0:04:54.1]} 3... cxd4 {[%clk 0:04:47.4]}
4. cxd4 {[%clk 0:04:50.5]} 4... d5 {[%clk 0:04:46.4]} 5. Nf3 {[%clk 0:04:43.7]}
5... Nc6 {[%clk 0:04:45]} 6. e3 {[%clk 0:04:39]} 6... a6 {[%clk 0:04:43.5]} 7.
Be2 {[%clk 0:04:34]} 7... Bg4 {[%clk 0:04:41.8]} 8. h3 {[%clk 0:04:31.3]} 8...
Bxf3 {[%clk 0:04:40.2]} 9. Bxf3 {[%clk 0:04:29.5]} 9... e6 {[%clk 0:04:39.4]}
10. O-O {[%clk 0:04:28.4]} 10... Bd6 {[%clk 0:04:36.5]} 11. Bxd6 {[%clk
0:04:23.6]} 11... Qxd6 {[%clk 0:04:36.4]} 12. b3 {[%clk 0:04:20.1]} 12... O-O
{[%clk 0:04:34.4]} 13. Nc3 {[%clk 0:04:14.8]} 13... b5 {[%clk 0:04:32.8]} 14.
Rc1 {[%clk 0:04:10]} 14... Rac8 {[%clk 0:04:30.8]} 15. Qd2 {[%clk 0:04:04.5]}
15... Rc7 {[%clk 0:04:27.5]} 16. Rc2 {[%clk 0:04:03.3]} 16... Nb4 {[%clk
0:04:25]} 17. Rb2 {[%clk 0:03:58]} 17... Rfc8 {[%clk 0:04:21.5]} 18. Rc1 {[%clk
0:03:55.2]} 18... e5 {[%clk 0:04:11.1]} 19. a3 {[%clk 0:03:48.2]} 19... exd4
{[%clk 0:04:01.5]} 20. exd4 {[%clk 0:03:46.6]} 20... Nc6 {[%clk 0:03:59.5]} 21.
Ra2 {[%clk 0:03:18.4]} 21... h6 {[%clk 0:03:56.8]} 22. Qd3 {[%clk 0:03:10]}
22... Qf4 {[%clk 0:03:52.1]} 23. Raa1 {[%clk 0:03:02.6]} 23... Nxd4 {[%clk
0:03:44.2]} 24. Ne2 {[%clk 0:02:43.8]} 24... Nxe2+ {[%clk 0:03:40.6]} 25. Bxe2
{[%clk 0:02:42.2]} 25... Rxc1+ {[%clk 0:03:38]} 26. Rxc1 {[%clk 0:02:36.8]}
26... Rxc1+ {[%clk 0:03:36]} 27. Bf1 {[%clk 0:02:35]} 27... Ne4 {[%clk
0:03:31.5]} 28. Qxe4 {[%clk 0:02:18.2]} 28... Rxf1+ {[%clk 0:03:26.7]} 29. Kxf1
{[%clk 0:02:16.4]} 29... Qxe4 {[%clk 0:03:25.3]} 30. Kg1 {[%clk 0:02:15]} 30...
Qb1+ {[%clk 0:03:23.6]} 31. Kh2 {[%clk 0:02:14.1]} 31... Qxb3 {[%clk 0:03:23.5]}
32. Kg1 {[%clk 0:02:12.3]} 32... Qxa3 {[%clk 0:03:22.6]} 33. Kh2 {[%clk
0:02:11.3]} 33... Qc1 {[%clk 0:03:21.3]} 34. Kg3 {[%clk 0:02:10.1]} 34... d4
{[%clk 0:03:20.1]} 35. Kh2 {[%clk 0:02:08]} 35... d3 {[%clk 0:03:19.4]} 36. g4
{[%clk 0:02:07]} 36... Qf4+ {[%clk 0:03:17.9]} 37. Kg2 {[%clk 0:02:05.2]} 37...
d2 {[%clk 0:03:17.2]} 38. g5 {[%clk 0:02:03.5]} 38... d1=Q {[%clk 0:03:16.1]}
39. f3 {[%clk 0:02:02.6]} 39... Qdxf3+ {[%clk 0:03:14.7]} 40. Kg1 {[%clk
0:02:00]} 40... Q4g3# {[%clk 0:03:13.5]} 0-1

[Event "Live Chess"]
[Site "Chess.com"]
[Date "2023.05.21"]
[Round "-"]
[White "Ferrarifan27"]
[Black "LL220284LL"]
[Result "0-1"]
[WhiteElo "2082"]
[BlackElo "2327"]
[TimeControl "300"]
[EndTime "3:47:54 PDT"]
[Termination "LL220284LL won by resignation"]

1. e4 {[%clk 0:04:59.1]} 1... c6 {[%clk 0:04:57.3]} 2. d4 {[%clk 0:04:57.5]}
2... d6 {[%clk 0:04:55.8]} 3. Nf3 {[%clk 0:04:55.7]} 3... g6 {[%clk 0:04:54.8]}
4. Be3 {[%clk 0:04:51.9]} 4... Bg7 {[%clk 0:04:53.9]} 5. Nc3 {[%clk 0:04:50.1]}
5... Nf6 {[%clk 0:04:52.1]} 6. Bc4 {[%clk 0:04:46]} 6... Bg4 {[%clk 0:04:50]} 7.
h3 {[%clk 0:04:43.7]} 7... Bxf3 {[%clk 0:04:48.8]} 8. Qxf3 {[%clk 0:04:43.6]}
8... Nbd7 {[%clk 0:04:46.5]} 9. O-O {[%clk 0:04:41.7]} 9... e5 {[%clk
0:04:43.4]} 10. Bb3 {[%clk 0:04:37.4]} 10... O-O {[%clk 0:04:40.4]} 11. Rad1
{[%clk 0:04:34.6]} 11... Qe7 {[%clk 0:04:39.9]} 12. dxe5 {[%clk 0:04:32.4]}
12... dxe5 {[%clk 0:04:36.9]} 13. Rd2 {[%clk 0:04:25]} 13... Nc5 {[%clk
0:04:34.2]} 14. Rfd1 {[%clk 0:04:20.5]} 14... Nxb3 {[%clk 0:04:32.2]} 15. axb3
{[%clk 0:04:18.8]} 15... b6 {[%clk 0:04:29.1]} 16. Bg5 {[%clk 0:04:17.2]} 16...
h6 {[%clk 0:04:26.3]} 17. Bh4 {[%clk 0:04:15.3]} 17... Rad8 {[%clk 0:04:22.9]}
18. Rd3 {[%clk 0:03:45.2]} 18... Rxd3 {[%clk 0:04:15.1]} 19. Qxd3 {[%clk
0:03:45.1]} 19... g5 {[%clk 0:04:14.1]} 20. Bg3 {[%clk 0:03:44.1]} 20... Nh5
{[%clk 0:04:13.2]} 21. Bh2 {[%clk 0:03:38.9]} 21... Nf4 {[%clk 0:04:10.8]} 22.
Bxf4 {[%clk 0:03:37.9]} 22... exf4 {[%clk 0:04:09.1]} 23. Qd6 {[%clk 0:03:36.9]}
23... Re8 {[%clk 0:03:37.8]} 24. Qxc6 {[%clk 0:03:31]} 24... Bxc3 {[%clk
0:03:35.9]} 25. bxc3 {[%clk 0:03:27.4]} 25... Qxe4 {[%clk 0:03:34.9]} 26. Qxe4
{[%clk 0:03:21.9]} 26... Rxe4 {[%clk 0:03:34.8]} 27. Rd7 {[%clk 0:03:20.4]}
27... Re1+ {[%clk 0:03:33.9]} 28. Kh2 {[%clk 0:03:18.7]} 28... Re2 {[%clk
0:03:33.8]} 29. Rxa7 {[%clk 0:03:11]} 29... Rxf2 {[%clk 0:03:31.7]} 30. Kg1
{[%clk 0:03:03.7]} 30... Rxc2 {[%clk 0:03:30.9]} 31. Rb7 {[%clk 0:03:02]} 31...
Rxc3 {[%clk 0:03:29.7]} 32. Rxb6 {[%clk 0:03:01.2]} 32... Kg7 {[%clk 0:03:28.2]}
33. b4 {[%clk 0:02:59.2]} 33... Rb3 {[%clk 0:03:24.5]} 34. b5 {[%clk 0:02:58.3]}
34... h5 {[%clk 0:03:23.2]} 35. Rb8 {[%clk 0:02:56.2]} 35... g4 {[%clk
0:03:21.5]} 36. hxg4 {[%clk 0:02:49.6]} 36... hxg4 {[%clk 0:03:21.4]} 37. b6
{[%clk 0:02:48.1]} 37... g3 {[%clk 0:03:07.7]} 38. Kf1 {[%clk 0:02:44.8]} 38...
Rb1+ {[%clk 0:03:01.6]} 39. Ke2 {[%clk 0:02:43.6]} 39... Rg1 {[%clk 0:03:01.2]}
40. Kf3 {[%clk 0:02:33]} 40... Rf1+ {[%clk 0:03:00.4]} 41. Kg4 {[%clk
0:02:31.8]} 41... f5+ {[%clk 0:02:55.4]} 42. Kxf5 {[%clk 0:02:24.6]} 42... f3
{[%clk 0:02:53.8]} 43. b7 {[%clk 0:02:16.7]} 43... fxg2+ {[%clk 0:02:52.6]} 44.
Kg5 {[%clk 0:02:15.8]} 44... g1=Q {[%clk 0:02:48.3]} 45. Rg8+ {[%clk 0:02:13.8]}
45... Kxg8 {[%clk 0:02:47.7]} 46. b8=Q+ {[%clk 0:02:12.7]} 46... Rf8 {[%clk
0:02:38]} 47. Qb3+ {[%clk 0:02:11.4]} 47... Rf7 {[%clk 0:02:06.2]} 48. Kg6
{[%clk 0:02:00.1]} 48... Qf2 {[%clk 0:01:54.8]} 49. Qb8+ {[%clk 0:01:55.2]}
49... Rf8 {[%clk 0:01:51.5]} 50. Qb3+ {[%clk 0:01:53.3]} 50... Qf7+ {[%clk
0:01:50.6]} 51. Qxf7+ {[%clk 0:01:49.5]} 51... Rxf7 {[%clk 0:01:50.5]} 0-1

[Event "Live Chess"]
[Site "Chess.com"]
[Date "2023.05.21"]
[Round "-"]
[White "LiamClery2020"]
[Black "Singapourfeuj"]
[Result "0-1"]
[WhiteElo "2002"]
[BlackElo "2187"]
[TimeControl "300"]
[EndTime "3:47:59 PDT"]
[Termination "Singapourfeuj won by resignation"]

1. e4 {[%clk 0:04:59.5]} 1... c5 {[%clk 0:04:57.3]} 2. Nf3 {[%clk 0:04:58.1]}
2... d6 {[%clk 0:04:56.3]} 3. Bb5+ {[%clk 0:04:56.7]} 3... Bd7 {[%clk
0:04:54.9]} 4. Bxd7+ {[%clk 0:04:55.8]} 4... Qxd7 {[%clk 0:04:54.3]} 5. O-O
{[%clk 0:04:55.4]} 5... g6 {[%clk 0:04:52.8]} 6. Re1 {[%clk 0:04:54.9]} 6... Bg7
{[%clk 0:04:52]} 7. c3 {[%clk 0:04:54.8]} 7... Nf6 {[%clk 0:04:45.3]} 8. d4
{[%clk 0:04:54]} 8... cxd4 {[%clk 0:04:44.4]} 9. cxd4 {[%clk 0:04:53.9]} 9... d5
{[%clk 0:04:43.7]} 10. e5 {[%clk 0:04:52.9]} 10... Ne4 {[%clk 0:04:42.6]} 11.
Nc3 {[%clk 0:04:52.5]} 11... Nxc3 {[%clk 0:04:41.3]} 12. bxc3 {[%clk 0:04:52.4]}
12... O-O {[%clk 0:04:39.2]} 13. Qb3 {[%clk 0:04:48.5]} 13... Nc6 {[%clk
0:04:36.9]} 14. Bg5 {[%clk 0:04:44.3]} 14... h6 {[%clk 0:04:33.3]} 15. Bh4
{[%clk 0:04:43.4]} 15... e6 {[%clk 0:04:30.6]} 16. Rab1 {[%clk 0:04:41.1]} 16...
b6 {[%clk 0:04:29.8]} 17. Red1 {[%clk 0:04:38.7]} 17... Rfc8 {[%clk 0:04:26.8]}
18. Bg3 {[%clk 0:04:35.7]} 18... Na5 {[%clk 0:04:25.5]} 19. Qb4 {[%clk 0:04:32]}
19... Bf8 {[%clk 0:04:22.7]} 20. Qb2 {[%clk 0:04:29.7]} 20... Rc4 {[%clk
0:04:20.3]} 21. Nd2 {[%clk 0:04:27.2]} 21... Rc6 {[%clk 0:04:17.3]} 22. Rdc1
{[%clk 0:04:20.7]} 22... Rac8 {[%clk 0:04:15.9]} 23. f3 {[%clk 0:04:15.8]} 23...
Nc4 {[%clk 0:04:14.4]} 24. Nxc4 {[%clk 0:04:14.7]} 24... Rxc4 {[%clk 0:04:12.9]}
25. Be1 {[%clk 0:04:12.4]} 25... Qc6 {[%clk 0:04:04.6]} 26. Bd2 {[%clk
0:04:02.4]} 26... Kg7 {[%clk 0:03:59.4]} 27. Rc2 {[%clk 0:03:59.4]} 27... Rxd4
{[%clk 0:03:53.2]} 28. cxd4 {[%clk 0:03:48.4]} 28... Qxc2 {[%clk 0:03:51.3]} 29.
Qxc2 {[%clk 0:03:44.1]} 29... Rxc2 {[%clk 0:03:49.8]} 30. Bb4 {[%clk 0:03:44]}
30... Bxb4 {[%clk 0:03:47.4]} 31. Rxb4 {[%clk 0:03:43.9]} 31... Rxa2 {[%clk
0:03:45.1]} 0-1

[Event "Live Chess"]
[Site "Chess.com"]
[Date "2023.05.21"]
[Round "-"]
[White "Ian-Morley"]
[Black "diana21strabt"]
[Result "0-1"]
[WhiteElo "1051"]
[BlackElo "1747"]
[TimeControl "300"]
[EndTime "3:48:12 PDT"]
[Termination "diana21strabt won by resignation"]

1. e4 {[%clk 0:04:55.8]} 1... d5 {[%clk 0:04:59]} 2. exd5 {[%clk 0:04:47.4]}
2... Qxd5 {[%clk 0:04:58]} 3. Nc3 {[%clk 0:04:46.5]} 3... Qa5 {[%clk 0:04:57.1]}
4. Qe2 {[%clk 0:04:40.2]} 4... Nf6 {[%clk 0:04:56.1]} 5. Qb5+ {[%clk 0:04:39.1]}
5... Qxb5 {[%clk 0:04:54.4]} 6. Nxb5 {[%clk 0:04:38.5]} 6... Na6 {[%clk
0:04:51.9]} 7. Nd4 {[%clk 0:04:36.6]} 7... e5 {[%clk 0:04:50]} 8. Bxa6 {[%clk
0:04:33.4]} 8... exd4 {[%clk 0:04:48.8]} 9. Bd3 {[%clk 0:04:32.4]} 9... Be6
{[%clk 0:04:46.6]} 10. Nf3 {[%clk 0:04:30.8]} 10... c5 {[%clk 0:04:44.6]} 11.
O-O {[%clk 0:04:28.9]} 11... Bd6 {[%clk 0:04:43.3]} 12. b3 {[%clk 0:04:25.7]}
12... O-O {[%clk 0:04:41.5]} 13. a4 {[%clk 0:04:14.2]} 13... a6 {[%clk
0:04:40.2]} 14. Rb1 {[%clk 0:04:09.6]} 14... Bd5 {[%clk 0:04:39]} 15. Re1 {[%clk
0:04:04]} 15... Bxf3 {[%clk 0:04:37.4]} 16. gxf3 {[%clk 0:04:03.2]} 16... Rfe8
{[%clk 0:04:35.5]} 17. Bb2 {[%clk 0:04:00.7]} 17... h6 {[%clk 0:04:33.1]} 18.
Rxe8+ {[%clk 0:03:59.5]} 18... Rxe8 {[%clk 0:04:32]} 19. Be4 {[%clk 0:03:54.6]}
19... Nxe4 {[%clk 0:04:29.6]} 20. fxe4 {[%clk 0:03:52.8]} 20... Rxe4 {[%clk
0:04:28.8]} 21. d3 {[%clk 0:03:50.6]} 21... Rg4+ {[%clk 0:04:27.4]} 22. Kf1
{[%clk 0:03:49.4]} 22... Bxh2 {[%clk 0:04:25.5]} 23. Ke2 {[%clk 0:03:47.3]}
23... Rf4 {[%clk 0:04:20.8]} 24. Kf1 {[%clk 0:03:44.3]} 24... Rh4 {[%clk
0:04:17.2]} 25. Kg2 {[%clk 0:03:42.8]} 25... Be5 {[%clk 0:04:15.2]} 26. c3
{[%clk 0:03:41.1]} 26... dxc3 {[%clk 0:04:13.5]} 27. Bxc3 {[%clk 0:03:40.1]}
27... Bxc3 {[%clk 0:04:12.4]} 28. Rc1 {[%clk 0:03:39.8]} 28... Bd4 {[%clk
0:04:09.2]} 29. b4 {[%clk 0:03:37.7]} 29... Rf4 {[%clk 0:04:06.6]} 30. bxc5
{[%clk 0:03:34.9]} 30... Rxf2+ {[%clk 0:04:05.4]} 31. Kg3 {[%clk 0:03:33.5]}
31... Ra2 {[%clk 0:04:02.8]} 32. c6 {[%clk 0:03:29.6]} 32... bxc6 {[%clk
0:04:01.9]} 33. Rxc6 {[%clk 0:02:56.1]} 33... Rxa4 {[%clk 0:03:59.3]} 34. Kf4
{[%clk 0:02:43.7]} 34... Bf6+ {[%clk 0:03:54.6]} 0-1